Cogmind - Beta 15 @@@ ROGUE MODE // 2025.05.13 @ 22:02:35 Player: Epsilon 11 Result: Destroyed by WQ-I3Q(R) with Subdweller Machine Gun Performance ------------- Evolutions (0) 0 Regions Visited (2) 400 Robots Destroyed (17) 85 Value Destroyed (494) 494 Prototype IDs (2) 40 Alien Tech Used (0) 0 Bonus (0) 0 TOTAL SCORE: 1019 Bonus ------- None Cogmind --------- Core Integrity 0/250 Matter 134/300 Energy 100/100 System Corruption 1% Temperature Cool (0) Movement Treading (160) Location -10/Subcaves Parts ------- > --- POWER (1) -------- (None) > --- PROPULSION (2) --- Improved Treads Improved Treads > --- UTILITY (2) ------ Large Storage Unit Core Shielding > --- WEAPON (2) ------- Subdweller Shrapnel Launcher > --- INVENTORY (15) --- Improved Treads Improved Treads Small Storage Unit Propulsion Shielding Propulsion Shielding Light Armor Plating Light Armor Plating Datajack Mining Laser Plasma Cutter Peak State ------------ > --- POWER ------------ Ion Engine > --- PROPULSION ------- Improved Treads Improved Treads > --- UTILITY ---------- Large Storage Unit Propulsion Shielding > --- WEAPON ----------- Light EM Pulse Cannon Light EM Pulse Cannon > --- INVENTORY -------- Light Ion Engine Improved Treads Improved Treads Small Storage Unit Core Shielding Propulsion Shielding Light Armor Plating Light Armor Plating EM Pulse Gun Medium Laser Light EM Pulse Cannon Light EM Pulse Cannon Datajack Mining Laser Plasma Cutter [Rating: 13] Favorites ----------- Power Ion Engine Engine Ion Engine Propulsion Wheel Treads Improved Treads Wheel Wheel Utility Large Storage Unit Storage Large Storage Unit Protection Propulsion Shielding Weapon Medium Laser Energy Gun Medium Laser Energy Cannon Light EM Pulse Cannon Launcher Subdweller Shrapnel Launcher Special Weapon Mining Laser Build | -11 -10 -10 ------- Run | Yrd Mat Sub Slots Evolved . | . . . Power . | . . . Propulsion . | . . . Utility . | . . . Weapon . | . . . Parts Attached 19 | 6 9 4 Power 2 | 1 1 . Engine 2 | 1 1 . Core . | . . . Reactor . | . . . Propulsion 4 | 2 2 . Treads 2 | . 2 . Leg . | . . . Wheel 2 | 2 . . Hover . | . . . Flight . | . . . Utility 4 | 1 2 1 Device . | . . . Storage 2 | 1 1 . Processor . | . . . Hackware . | . . . Protection 2 | . 1 1 Artifact . | . . . Weapon 9 | 2 4 3 Energy Gun 3 | 2 1 . Energy Cannon 4 | . 2 2 Ballistic Gun . | . . . Ballistic Cannon . | . . . Launcher 1 | . . 1 Special Weapon 1 | . 1 . Impact Weapon . | . . . Slashing Weapon . | . . . Piercing Weapon . | . . . Special Melee Weapon . | . . . Unidentified Prototypes . | . . . Parts Lost 8 | . 1 7 Power 2 | . 1 1 Propulsion . | . . . Utility . | . . . Weapon 6 | . . 6 Highest Loss Streak 2 | . 1 2 To Critical Strikes . | . . . Average Backups 8 | . 7 11 Power . | . . . Propulsion . | . . 2 Utility 3 | . 3 5 Weapon 1 | . 1 2 Tool/Special . | . . . Unused Backups 7 | . . 7 Power . | . . . Propulsion 2 | . . 2 Utility 3 | . . 3 Weapon . | . . . Tool/Special 2 | . . 2 Average Slot Usage (%) 98 | . 98 96 Engine 13 | . 14 11 Treads 13 | . 5 28 Wheel 14 | . 22 . Storage 14 | . 14 14 Protection 13 | . 12 14 Energy Gun 17 | . 22 9 Energy Cannon 7 | . 3 15 Special Weapon 1 | . 1 . Peak Build Rating 13 | 6 13 12 Average Rating 8 | 4 7 10 On Entrance 6 | . 6 12 Naked Turns . | . . . Heaviest Build 34 | 14 34 33 Greatest Support 46 | 20 46 46 Greatest Overweight (x) 2 | . 2 . Average Overweight (x) . | . . . Largest Inventory Capacity 15 | 8 15 15 Average Capacity 14 | 7 14 15 Most Carried 15 | 1 15 14 Average Carried 8 | . 7 11 Final Capacity 15 | 8 15 15 Final Carried 14 | 1 14 10 Class Distribution -------------------- 100% | Mutant Dominant Class ---------------- Mutant | -10/Materials Mutant | -10/Subcaves Resources | -11 -10 -10 ----------- Run | Yrd Mat Sub Matter Collected 462 | 187 188 87 Remotely . | . . . Salvage Created 570 | . 281 289 Parts 40 | . 23 17 Haulers Intercepted . | . . . Recyclers Shooed . | . . . Parts Field Recycled . | . . . Retrieved Matter . | . . . Parts Self-Destructed 7 | . . 7 Prevented . | . . . Kills | -11 -10 -10 ------- Run | Yrd Mat Sub Combat Hostiles Destroyed 17 | . 10 7 Guns 8 | . 8 . Cannons 3 | . 1 2 AOE 3 | . . 3 Classes Destroyed 4 | . 2 2 Swarmer 6 | . 6 . Grunt 4 | . 4 . Sentry 1 | . . 1 Subdweller 6 | . . 6 Best Kill Streak 3 | . 3 2 Combat Bots Only 3 | . 3 2 Max Kills in Single Turn 1 | . 1 1 Gunslinging . | . . . Exploded 1 | . . 1 Melee . | . . . Uniques/NPCs Destroyed . | . . . Combat | -11 -10 -10 -------- Run | Yrd Mat Sub Hostile Shots Fired 108 | . 46 62 Missed 37 | . 10 27 Hits 71 | . 36 35 Projectile 71 | . 36 35 AOE 5 | . . 5 Critical Strikes 2 | . 1 1 Damage Taken 1267 | . 391 876 Core 254 | . 109 145 Absorbed by Shields . | . . . Redirected to Shielding 48 | . 19 29 Regen/Repaired (Parts) 29 | . 29 . Core Remaining (%) 100 | 100 . . Volleys Fired 70 | . 31 39 Largest 2 | . 2 2 Hottest 112 | . 112 112 Shots Fired 109 | . 55 54 Gun 61 | . 38 23 Cannon 36 | . 14 22 Launcher 9 | . . 9 Special 3 | . 3 . Kinetic 9 | . . 9 Thermal 32 | . 22 10 Explosive . | . . . Electromagnetic 68 | . 33 35 Robot Hit Streak 16 | . 5 16 Robot Miss Streak 4 | . 3 4 Penetration Max . | . . . Secondary Targets . | . . . Shots Hit Robots 66 | . 26 40 Core Hits 24 | . 12 12 Critical Kills . | . . . Critical Parts Destroyed . | . . . Critical Strikes 4 | . 2 2 Burn 1 | . 1 . Corrupt 3 | . 1 2 Melee Attacks . | . . . Impact . | . . . Slashing . | . . . Piercing . | . . . Sneak Attacks . | . . . Combat Hostiles . | . . . Follow-up Attacks . | . . . Damage Inflicted 1664 | . 437 1227 Guns 394 | . 221 173 Cannons 522 | . 216 306 Explosions 748 | . . 748 Melee . | . . . Ramming . | . . . Kinetic 748 | . . 748 Thermal 186 | . 124 62 Explosive . | . . . Electromagnetic 730 | . 313 417 Impact . | . . . Slashing . | . . . Piercing . | . . . Highest Corruption 1 | . 1 1 Average Corruption 1 | . 1 1 Corruption Purged . | . . . Corruption Blocked . | . . . Effects 9 | . 3 6 Message Errors 2 | . 2 . Matter Fused 2 | . . 2 Heat Flow Errors 1 | . 1 . Energy Discharges 1 | . . 1 Parts Rejected 1 | . . 1 Misfires 1 | . . 1 Weapon Failures 1 | . . 1 Overload Shots . | . . . Overflow Damage . | . . . Projectiles . | . . . Explosions . | . . . Melee . | . . . Knockbacks . | . . . Impact . | . . . Kinetic . | . . . Secondary . | . . . Self-Inflicted Damage 39 | . . 39 Shots 3 | . . 3 Rammed . | . . . Targets Rammed . | . . . Kicked . | . . . Crushed . | . . . Highest Temperature 208 | . 208 1 Average Temperature 76 | . 76 1 Received Heat Transfer 264 | . 147 117 Effects 1 | . 1 . Energy Bleed 1 | . 1 . Siege Activations . | . . . Martial Activations . | . . . Shielding Activations . | . . . Robots Disrupted . | . . . Combat Hostiles . | . . . Robots Corrupted 3 | . 1 2 Combat Hostiles 3 | . 1 2 Parts Fried 7 | . 3 4 Impact Corruptions . | . . . Robots Melted . | . . . Combat Hostiles . | . . . Parts Melted 2 | . 2 . Heat Transferred 629 | . 444 185 Parts Sabotaged . | . . . Parts Stolen . | . . . Parts Stripped . | . . . Power Chain Reactions . | . . . Alert | -11 -10 -10 ------- Run | Yrd Mat Sub Maximum Alert Level . | . . . Low Security (%) 100 | 100 100 . Level 1 . | . . . Level 2 . | . . . Level 3 . | . . . Level 4 . | . . . Level 5 . | . . . High Security . | . . . Max Security . | . . . Peak Influence 159 | . 159 . Initial . | . . . Average 85 | . 92 . Influence Increases 467 | . 432 35 Destroy 0b10 Robot/C 220 | . 200 20 Destroy Leader 40 | . 40 . Successful Hack 54 | . 54 . Destroy Structure 3 | . 3 . Lose Combat Pursuer 150 | . 135 15 Influence Decreases 467 | . 288 179 Entered New Map 70 | . . 70 Time Decay 352 | . 278 74 Lost Part 45 | . 10 35 Squads Dispatched 2 | . 2 . Investigation 1 | . 1 . Extermination . | . . . Reinforcement 1 | . 1 . Assault . | . . . Garrison . | . . . Intercept . | . . . Searches Triggered . | . . . Construction Impeded . | . . . Haulers Reinforced . | . . . Active Scanning Responses . | . . . Cargo Convoy Interrupts . | . . . Stealth | -11 -10 -10 --------- Run | Yrd Mat Sub Distress Signals 1 | . 1 . Communications Jammed . | . . . Distress Signals . | . . . Times Spotted 28 | . 17 11 Peak Tracking Total 6 | . 6 3 Tactical Retreats 6 | . 5 1 Traps | -11 -10 -10 ------- Run | Yrd Mat Sub Traps Triggered 1 | . 1 . Indirectly . | . . . Trap Hack Attempts . | . . . Triggered . | . . . Disarmed . | . . . Reprogrammed . | . . . Reused . | . . . Traps Extracted . | . . . Installed . | . . . Triggered . | . . . Machines | -11 -10 -10 ---------- Run | Yrd Mat Sub Machines Disabled . | . . . Max in Single Turn . | . . . Machines Repaired . | . . . Machines Dismantled . | . . . Machines Sabotaged . | . . . Overloaded Fab Kills . | . . . Hacking | -11 -10 -10 --------- Run | Yrd Mat Sub Machines Accessed 7 | . 7 . Terminals 6 | . 6 . Fabricators . | . . . Repair Stations 1 | . 1 . Recycling Units . | . . . Scanalyzers . | . . . Garrison Access . | . . . Total Hacks 27 | . 27 . Successful 16 | . 16 . Failed 11 | . 11 . Catastrophic 1 | . 1 . Database Lockouts . | . . . Manual 15 | . 15 . Terminals 24 | . 24 . Fabricators . | . . . Repair Stations 3 | . 3 . Recycling Units . | . . . Scanalyzers . | . . . Garrison Access . | . . . Terminal Hacks 4 | . 4 . Robot Analysis 2 | . 2 . Prototype ID Bank 1 | . 1 . Terminal Index 1 | . 1 . Fabricator Hacks . | . . . Repair Station Hacks 2 | . 2 . Scan Component 1 | . 1 . Repair 1 | . 1 . Recycling Unit Hacks . | . . . Scanalyzer . | . . . Garrison Access Hacks . | . . . Unauthorized Hacks 10 | . 10 . Terminals 10 | . 10 . Botnet 3 | . 3 . Operators 1 | . 1 . Skim 6 | . 6 . Fabricators . | . . . Repair Stations . | . . . Recycling Units . | . . . Scanalyzers . | . . . Garrison Access . | . . . Data Cores Recovered . | . . . Used . | . . . Hacking Detections 6 | . 6 . Full Trace Events 1 | . 1 . Feedback Events . | . . . Feedback Blocked . | . . . Robot Schematics Acquired . | . . . Robots Built . | . . . Authchips . | . . . Time . | . . . Total Robot Build Rating . | . . . Part Schematics Acquired . | . . . Parts Built . | . . . Authchips . | . . . Time . | . . . Total Part Build Rating . | . . . Parts Repaired 1 | . 1 . Time 13 | . 13 . Parts Recycled . | . . . Recycled Matter . | . . . Retrieved Matter . | . . . Retrieved Components . | . . . Parts Scanalyzed . | . . . Part Schematics Acquired . | . . . Parts Damaged . | . . . Bothacking | -11 -10 -10 ------------ Run | Yrd Mat Sub Used RIF Installer . | . . . Robots Hacked . | . . . Non-combat . | . . . Combat . | . . . Robot Hacks Applied . | . . . Relay Couplers Released . | . . . Fabnet Peak Effective % . | . . . Robots Rewired . | . . . Allies Hacked . | . . . Hacks Repelled . | . . . Allies | -11 -10 -10 -------- Run | Yrd Mat Sub Total Allies . | . . . Largest Group . | . . . Highest-Rated Group . | . . . Highest-Rated Ally . | . . . Total Orders . | . . . Ally Attacks . | . . . Total Damage . | . . . Kills . | . . . Allies Corrupted . | . . . Allies Melted . | . . . Intel | -11 -10 -10 ------- Run | Yrd Mat Sub Active Infowar (turns) . | . . . Robot Analysis Total 2 | . 2 . Derelict Logs Recovered . | . . . Drone Launches . | . . . Drone Recoveries . | . . . Exploration | -11 -10 -10 ------------- Run | Yrd Mat Sub Turns Passed 1036 | 47 624 365 Spaces Moved 636 | 48 445 143 Core 3 | 3 . . Treads 195 | . 52 143 Legs . | . . . Wheels 438 | 45 393 . Hover . | . . . Flight . | . . . Fastest Speed 50 | 50 80 160 Average Speed 112 | 78 101 160 Slowest Speed 160 | 80 160 160 Overloaded Moves . | . . . Propulsion Burnouts . | . . . Robots Hopped . | . . . Potential Cave-ins . | . . . Cave-ins Triggered . | . . . Exploration Rate (%) 26 | 4 62 13 Regions Visited 2 Branch Regions 1 Pre-discovered Areas 1 | . 1 . Known Exits Taken 1 | . 1 . Unknown Exits Taken 1 | 1 . . Scrap Searched . | . . . Spaces Dug 3 | . 3 . Terrain Destroyed 103 | . 3 100 Melee . | . . . Projectile 3 | . 3 . AOE 100 | . . 100 Terrain Rammed . | . . . Walls Destroyed . | . . . Machines Disabled . | . . . Actions | -11 -10 -10 --------- Run | Yrd Mat Sub Total 831 | 54 554 223 Wait 80 | . 48 32 Move 634 | 47 444 143 Hop . | . . . Pick Up 17 | 1 15 1 Fast Attach 11 | 6 4 1 Attach 6 | . 1 5 Detach . | . . . Swap 10 | . 8 2 Drop 3 | . 3 . Fire 70 | . 31 39 Melee . | . . . Ram . | . . . Kick . | . . . Crush . | . . . Escape Stasis . | . . . Rewire . | . . . Trap . | . . . Miscellaneous . | . . . Route ------- -11/Scrapyard -10/Materials (discovered 4 exits: *Mat x2 / [*Min] / *Sub) -10/Subcaves History --------- Turn | Location | Event 17 | -11/Scrapyard | Discovered new exit (range 16) 48 | -11/Scrapyard | Entered Materials 152 | -10/Materials | Discovered new exit (range 14) 310 | -10/Materials | Build established: Mutant 378 | -10/Materials | Learned Storage emergency access door positions 412 | -10/Materials | Repaired EM Pulse Gun 431 | -10/Materials | Loaded intel: 7 terminal locations 476 | -10/Materials | Learned location of 2 exits from Mines 511 | -10/Materials | Learned Storage terminal intel 518 | -10/Materials | Discovered new exit (range 7) 537 | -10/Materials | Loaded intel: 1 repair station location 563 | -10/Materials | Identified exit to Subcaves 563 | -10/Materials | Identified exit to Materials 658 | -10/Materials | Learned location of 1 exit from Storage 672 | -10/Materials | Entered Subcaves 673 | -10/Subcaves | Approached by a straggling Scientist 674 | -10/Subcaves | Shifting Twisted Machinery released Piercing Trap 696 | -10/Subcaves | Core integrity fell below 50% 698 | -10/Subcaves | Core integrity fell below 20% 699 | -10/Subcaves | Shifting Twisted Machinery released Sub. Machine Gun 1024 | -10/Subcaves | Ambushed by Subdwellers from Twisted Machinery 1028 | -10/Subcaves | Ambushed by Subdweller buried in earth 1037 | -10/Subcaves | Destroyed by WQ-I3Q(R) with Subdweller Machine Gun Last Messages --------------- 00883_ Critical hit (Burn: +37). 00903_ G-47 Trooper suffers critical hit (Destroy). 00931_ 87-NZ0(R) destroyed. 00946_ System corrupted: Med. Laser failed to cycle. 00948_ System corrupted: Core Shielding rejected. 00949_ Acquired Core Shielding. 00963_ Med. Laser destroyed. 00965_ Lgt. Ion Engine destroyed. 00974_ W4-2SG(R) destroyed. 00984_ Acquired 3 matter. 01002_ Acquired 29 matter. 01023_ System corrupted: Matter fused (-7). 01024_ W1-75S(R) emerges from the Twisted Machinery. 01027_ Lgt. EM Pulse Cannon destroyed. 01028_ W1-75S(R) destroyed. 01029_ 08-VK8(R): "ARGHSUB!" 01029_ 3J-RJH(R): "ARGHSUB!" 01030_ 3J-RJH(R) destroyed. 01035_ 08-VK8(R) affixes Scrap Shield Fragment to Scrap Shield. 01036_ Sub. Shrapnel Launcher shoots sparks and powers down. Map ----- +----------------------------------------------------+ | ?????????????????????????????????????????????????? | | ?????????????????????????????????????????????????? | | ?????????????????????????????????????????????????? | | ?????????????????????????????????????????????????? | | ???????????????????????????????????????###???????? | | ??????????????????????????????????????## ##??###? | | ????????????????????????????????????### #### #? | | ???????????????????????????????????## #? | | ???????????????????????????????????# #? | | ???????????????????????????????????## #? | | ????????????????????????????????????## ##? | | ?????????????????????????????????????## ### ### | | ???????????????????????????????????##?###### # # | | ??????????????????????????????????## # #? | | ????????????????????????????##????# # ## | | ???????????????????????""""""""#### # | | ??????????????##???????"" # & # | | ??????????????? ?????? "" # ! # | | ???????????????? ????? "" # ## | | ????????????????? ????# """ #? | | ??????????????????# ####""""" #? | | ???????????????????# """" """ # #? | | ???????????????##### """ """ ###### ##? | | ?????????? #; ;;; """""""???#### ### | | ?????????? ; ""######### ## | | ?????????????#; @ ""#"#" ## ## | | ?????????????# %R ## | | ?????????? ; R ## % # | | ??????????? ######## ## | | ???????????#" #??????###### ### | | ????????????# #???????????## #######?? | | ????????????# ##????????????###???????? | | ???????????? ; #????????????????????????? | | ????????????? ###### ###?????????????????????????? | | ???????????????????##????????????????????????????? | | ?????????????????????????????????????????????????? | | ?????????????????????????????????????????????????? | | ?????????????????????????????????????????????????? | | ?????????????????????????????????????????????????? | | ?????????????????????????????????????????????????? | | ?????????????????????????????????????????????????? | | ?????????????????????????????????????????????????? | | ?????????????????????????????????????????????????? | | ?????????????????????????????????????????????????? | | ?????????????????????????????????????????????????? | | ?????????????????????????????????????????????????? | | ?????????????????????????????????????????????????? | | ?????????????????????????????????????????????????? | | ?????????????????????????????????????????????????? | | ?????????????????????????????????????????????????? | +----------------------------------------------------+ Best States ------------- Heat Dissipation 25 Energy Generation 10 Energy Capacity 250 Matter Stores 300 Matter Capacity 300 Sight Range 16 Terrain Scan Density 10 Core Shielding 20 Propulsion Shielding 33 Evasion (%) 44 Recoil Reduction 2 Item Schematics ----------------- None Robot Schematics ------------------ None Fabricated ------------ Nothing Repaired ---------- EM Pulse Gun | 35% | -10/Materials Alien Tech Used ----------------- None Achievements -------------- None Challenges ------------ None Game ------ Seed WeaponsSubatomicRegenerator Manual? 0 Play Time 00:15:37 Cumulative 228.5 hours Start 2025.05.13 @ 21:48:02 End 2025.05.13 @ 22:02:35 Sessions 1 Manual Loads 0 Difficulty Rogue Special Mode None Game No. 106 Rogue 63 Adventurer 43 Explorer 0 Win Type - Total 6 Types 4/0/1/0/0/0/0/1/0/0 Lore% 70 Gallery% 66 Achievement% 61 Wizard Run 0 Options --------- Layout 0 ASCII 0 Keyboard 0 Movement Mouse Keybinds 0 Fullscreen 1 Font 24/Smallcaps Map View 76x50 Zoom Use 0% Tactical HUD 1 Map Filters NONE Filters NONE Steam 1 RUN: 5f0b2129-9d56-4abe-a9f4-53b88bd116be